[Event "48th Indian U15-ch Girls 2023"]
[Site "Jalgaon"]
[Date "2023.12.31"]
[Round "6.1"]
[White "Saparya Ghosh"]
[Black "Bhat Sannidhi Ramakrishna"]
[Result "1/2-1/2"]
[ECO "E90"]
[WhiteElo "1662"]
[BlackElo "1637"]
[Annotator "NA COMBH"]
[PlyCount "143"]
[EventDate "2023.12.30"]
[EventType "swiss"]
[EventCountry "IND"]
[SourceTitle "playchess.com"]
[Source "ChessBase"]
[SourceQuality "1"]
[TimeControl "5400+30"]

1. d4 {[%emt 0:00:25]} Nc6 {[%emt 0:00:15]} 2. Nf3 {[%emt 0:00:09]} d6 {[%emt 0:00:13]} 3. d5 {[%emt 0:00:06]} Nb8 {[%emt 0:00:16]} 4. e4 {[%emt 0:00:40]} g6 {[%emt 0:00:22]} 5. c4 {[%emt 0:00:43]} Bg7 {[%emt 0:00:19]} 6. h3 {[%emt 0:00:16]} Nf6 {[%emt 0:00:16]} 7. Nc3 {[%emt 0:00:12]} O-O {[%emt 0:00:24]} 8. Bd3 {[%emt 0:00:32]} a5 {[%emt 0:01:10]} 9. O-O {[%emt 0:00:40]} Na6 {[%emt 0:01:00]} 10. Re1 {[%emt 0:00:51]} Nc5 {[%emt 0:02:35]} 11. Bc2 {[%emt 0:01:26]} Nfd7 {[%emt 0:08:58]} 12. Be3 {[%emt 0:04:07]} e5 {[%emt 0:07:25]} 13. dxe6 {[%emt 0:02:53]} Nxe6 {[%emt 0:02:20]} 14. Rb1 {[%emt 0:03:41]} Ne5 {[%emt 0:22:25]} 15. Nd2 {[%emt 0:11:07]} Nc5 {[%emt 0:20:15]} 16. Qe2 {[%emt 0:01:59]} Re8 {[%emt 0:04:10]} 17. Rbd1 {[%emt 0:10:14]} b6 {[%emt 0:01:45]} 18. a3 {[%emt 0:10:32]} Bd7 {[%emt 0:07:47]} 19. f4 {[%emt 0:02:31]} Nc6 {[%emt 0:00:32]} 20. Qf2 {[%emt 0:00:35]} f5 {[%emt 0:05:11]} 21. exf5 {[%emt 0:11:22]} Bxf5 {[%emt 0:00:06]} 22. Bxf5 {[%emt 0:01:38]} gxf5 {[%emt 0:00:03]} 23. Nf3 {[%emt 0:01:10]} Bxc3 {[%emt 0:05:01]} 24. bxc3 {[%emt 0:00:39]} Ne4 {[%emt 0:00:03]} 25. Qc2 {[%emt 0:00:44]} Qf6 {[%emt 0:04:11]} 26. Qa4 {[%emt 0:07:22]} Ne7 {[%emt 0:03:06]} 27. Bd4 {[%emt 0:00:26]} Qf7 {[%emt 0:00:40]} 28. Ng5 {[%emt 0:01:20]} Nxg5 {[%emt 0:00:15]} 29. fxg5 {[%emt 0:00:06]} f4 {[%emt 0:02:21]} 30. Re4 {[%emt 0:04:32]} Ng6 {[%emt 0:01:00]} 31. Rde1 {[%emt 0:01:24]} Rxe4 {[%emt 0:00:40]} 32. Rxe4 {[%emt 0:00:02]} Rf8 {[%emt 0:00:19]} 33. Bf6 {[%emt 0:01:13]} h6 {[%emt 0:00:07]} 34. h4 {[%emt 0:00:14]} Nxh4 {[%emt 0:00:41]} 35. Re7 {[%emt 0:00:35]} Qg6 {[%emt 0:00:52]} 36. Rg7+ {[%emt 0:00:33]} Qxg7 {[%emt 0:00:05]} 37. Bxg7 {[%emt 0:00:03]} Kxg7 {[%emt 0:00:03]} 38. Qd7+ {[%emt 0:00:09]} Kg6 {[%emt 0:01:31]} 39. gxh6 {[%emt 0:05:06]} Kxh6 {[%emt 0:00:26]} 40. Qxc7 {[%emt 0:00:28]} Rf6 {[%emt 0:00:35]} 41. Qd8 {[%emt 0:00:15]} Kg7 {[%emt 0:00:33]} 42. Qc7+ {[%emt 0:05:18]} Kh6 {[%emt 0:00:36]} 43. Qd8 {[%emt 0:05:32]} Kg7 {[%emt 0:00:18]} 44. Qxb6 {[%emt 0:00:05]} f3 {[%emt 0:00:44]} 45. gxf3 {[%emt 0:00:26]} Nxf3+ {[%emt 0:00:05]} 46. Kg2 {[%emt 0:00:19]} Nh4+ {[%emt 0:00:51]} 47. Kh3 {[%emt 0:00:39]} Ng6 {[%emt 0:00:33]} 48. Qxa5 {[%emt 0:00:22]} Ne5 {[%emt 0:00:29]} 49. Qc7+ {[%emt 0:00:16]} Kg6 {[%emt 0:00:15]} 50. c5 {[%emt 0:00:10]} Kf5 {[%emt 0:00:30]} 51. cxd6 {[%emt 0:00:34]} Rf7 {[%emt 0:00:34]} 52. Qc8+ {[%emt 0:00:35]} Kf4 {[%emt 0:00:26]} 53. Kg2 {[%emt 0:01:19]} Ke4 {[%emt 0:00:45]} 54. Qa8+ {[%emt 0:00:39]} Ke3 {[%emt 0:00:20]} 55. Kg3 {[%emt 0:04:30]} Rg7+ {[%emt 0:00:27]} 56. Kh4 {[%emt 0:00:14]} Kf4 {[%emt 0:00:40]} 57. Qa4+ {[%emt 0:02:22]} Kf5 {[%emt 0:00:24]} 58. Qb5 {[%emt 0:01:06]} Kf4 {[%emt 0:00:31]} 59. Qf1+ {[%emt 0:00:26]} Ke4 {[%emt 0:00:33]} 60. Qe2+ {[%emt 0:01:29]} Kf4 {[%emt 0:00:22]} 61. Qf2+ {[%emt 0:00:20]} Ke4 {[%emt 0:00:28]} 62. Qf6 {[%emt 0:00:39]} Rg6 {[%emt 0:00:46]} 63. Qxg6+ {[%emt 0:01:03]} Nxg6+ {[%emt 0:00:05]} 64. Kg5 {[%emt 0:00:03]} Nf4 {[%emt 0:00:56]} 65. d7 {[%emt 0:00:24]} Ke5 {[%emt 0:00:11]} 66. d8=N {[%emt 0:00:37]} Ne2 {[%emt 0:00:23]} 67. Nc6+ {[%emt 0:00:58]} Kd6 {[%emt 0:00:13]} 68. Nd4 {[%emt 0:00:31]} Nxc3 {[%emt 0:00:09]} 69. Kf4 {[%emt 0:00:08]} Kc5 {[%emt 0:00:48]} 70. Ke3 {[%emt 0:00:35]} Nb5 {[%emt 0:00:42]} 71. Nc2 {[%emt 0:00:22]} Nxa3 {[%emt 0:00:05]} 72. Nxa3 {[%emt 0:00:03]} 1/2-1/2

[Event "48th Indian U15-ch Girls 2023"]
[Site "Jalgaon"]
[Date "2023.12.31"]
[Round "6.2"]
[White "Arshiya Das"]
[Black "Shubhi Gupta"]
[Result "1/2-1/2"]
[ECO "C54"]
[WhiteElo "1729"]
[BlackElo "1902"]
[Annotator "COMBH"]
[PlyCount "60"]
[EventDate "2023.12.30"]
[EventType "swiss"]
[EventCountry "IND"]
[SourceTitle "playchess.com"]
[Source "ChessBase"]
[SourceQuality "1"]
[TimeControl "5400+30"]

1. e4 {[%emt 0:00:03]} e5 {[%emt 0:02:00]} 2. Nf3 {[%emt 0:00:07]} Nc6 {[%emt 0:00:20]} 3. Bc4 {[%emt 0:00:04]} Bc5 {[%emt 0:00:34]} 4. c3 {[%emt 0:00:05]} Nf6 {[%emt 0:00:15]} 5. d4 {[%emt 0:00:06]} exd4 {[%emt 0:00:28]} 6. b4 {[%emt 0:00:05]} Bb6 {[%emt 0:04:14]} 7. e5 {[%emt 0:00:07]} d5 {[%emt 0:03:15]} 8. exf6 {[%emt 0:00:08]} dxc4 {[%emt 0:00:05]} 9. Qe2+ {[%emt 0:00:08]} Be6 {[%emt 0:00:50]} 10. b5 {[%emt 0:00:10]} d3 {[%emt 0:00:36]} 11. Qe4 {[%emt 0:00:05]} Nb4 {[%emt 0:01:29]} 12. O-O {[%emt 0:00:11]} Nc2 {[%emt 0:01:27]} 13. fxg7 {[%emt 0:00:08]} Rg8 {[%emt 0:00:24]} 14. Bg5 {[%emt 0:00:06]} Qd5 {[%emt 0:01:44]} 15. Qxh7 {[%emt 0:00:07]} Kd7 {[%emt 0:01:50]} 16. Nbd2 {[%emt 0:00:38]} Bf5 {[%emt 0:03:05]} 17. Qh5 {[%emt 0:00:30]} Rae8 {[%emt 0:07:34]} 18. Bf6 {[%emt 0:05:20]} Nxa1 {[%emt 0:02:17]} 19. Rxa1 {[%emt 0:06:27]} Kc8 {[%emt 0:03:45]} 20. h4 {[%emt 0:07:31]} Qe6 {[%emt 0:02:20]} 21. Qg5 {[%emt 0:01:01]} Bg6 {[%emt 0:06:33]} 22. g4 {[%emt 0:16:30]} Qe2 {[%emt 0:06:50]} 23. Rf1 {[%emt 0:01:22]} Be4 {[%emt 0:02:39]} 24. Nd4 {[%emt 0:08:15]} Bxd4 {[%emt 0:00:33]} 25. Bxd4 {[%emt 0:00:05]} Re6 {[%emt 0:01:24]} 26. f3 {[%emt 0:02:40]} Rg6 {[%emt 0:00:55]} 27. Qf4 {[%emt 0:02:24]} Bd5 {[%emt 0:02:16]} 28. h5 {[%emt 0:02:20]} R6xg7 {[%emt 0:01:43]} 29. Bxg7 {[%emt 0:02:45]} Rxg7 {[%emt 0:00:05]} 30. h6 {[%emt 0:13:14]} Rg8 {[%emt 0:00:04]} 1/2-1/2

[Event "48th Indian U15-ch Girls 2023"]
[Site "Jalgaon"]
[Date "2023.12.31"]
[Round "6.3"]
[White "Sachi Jain"]
[Black "Sneha Halder"]
[Result "1-0"]
[ECO "B18"]
[WhiteElo "1844"]
[BlackElo "1766"]
[Annotator "NA COMBH"]
[PlyCount "91"]
[EventDate "2023.12.30"]
[EventType "swiss"]
[EventCountry "IND"]
[SourceTitle "playchess.com"]
[Source "ChessBase"]
[SourceQuality "1"]
[TimeControl "5400+30"]

1. e4 {[%emt 0:01:31]} c6 {[%emt 0:00:17]} 2. d4 {[%emt 0:02:55]} d5 {[%emt 0:00:08]} 3. Nc3 {[%emt 0:00:01]} dxe4 {[%emt 0:00:06]} 4. Nxe4 {[%emt 0:00:05]} Bf5 {[%emt 0:00:04]} 5. Ng3 {[%emt 0:00:07]} Bg6 {[%emt 0:00:05]} 6. Bc4 {[%emt 0:00:07]} e6 {[%emt 0:00:40]} 7. N1e2 {[%emt 0:00:17]} Bd6 {[%emt 0:00:25]} 8. O-O {[%emt 0:00:28]} Ne7 {[%emt 0:00:32]} 9. c3 {[%emt 0:04:07]} O-O {[%emt 0:00:51]} 10. Nf4 {[%emt 0:02:53]} Bxf4 {[%emt 0:01:03]} 11. Bxf4 {[%emt 0:00:10]} Nd7 {[%emt 0:00:08]} 12. Qe2 {[%emt 0:03:58]} Nb6 {[%emt 0:02:25]} 13. Bd3 {[%emt 0:02:07]} Bxd3 {[%emt 0:06:05]} 14. Qxd3 {[%emt 0:00:10]} Ng6 {[%emt 0:00:13]} 15. Be3 {[%emt 0:06:08]} Qd5 {[%emt 0:01:58]} 16. b3 {[%emt 0:06:51]} f5 {[%emt 0:15:20]} 17. f4 {[%emt 0:09:10]} e5 {[%emt 0:01:32]} 18. c4 {[%emt 0:07:15]} Qd7 {[%emt 0:01:33]} 19. Rad1 {[%emt 0:00:55]} Rad8 {[%emt 0:03:51]} 20. Qc3 {[%emt 0:04:56]} exf4 {[%emt 0:16:16]} 21. Bxf4 {[%emt 0:00:25]} Nc8 {[%emt 0:00:23]} 22. d5 {[%emt 0:08:55]} cxd5 {[%emt 0:14:51]} 23. Rxd5 {[%emt 0:03:32]} Qe6 {[%emt 0:00:31]} 24. Nxf5 {[%emt 0:06:18]} Rd7 {[%emt 0:03:13]} 25. Re1 {[%emt 0:07:22]} Qf7 {[%emt 0:08:03]} 26. Rxd7 {[%emt 0:00:09]} Qxd7 {[%emt 0:00:10]} 27. Re7 {[%emt 0:00:15]} Qxe7 {[%emt 0:05:17]} 28. Nxe7+ {[%emt 0:00:08]} Ncxe7 {[%emt 0:00:36]} 29. Bd6 {[%emt 0:00:22]} Rd8 {[%emt 0:00:25]} 30. Bxe7 {[%emt 0:00:01]} Nxe7 {[%emt 0:00:01]} 31. Qe5 {[%emt 0:01:59]} Kf7 {[%emt 0:01:40]} 32. Qc7 {[%emt 0:01:15]} Rd1+ {[%emt 0:00:50]} 33. Kf2 {[%emt 0:00:01]} Rd2+ {[%emt 0:00:01]} 34. Kf1 {[%emt 0:00:19]} Rxa2 {[%emt 0:01:16]} 35. Qxb7 {[%emt 0:00:03]} Ke6 {[%emt 0:00:02]} 36. Qe4+ {[%emt 0:00:57]} Kf6 {[%emt 0:00:31]} 37. c5 {[%emt 0:01:16]} Ra6 {[%emt 0:01:18]} 38. b4 {[%emt 0:00:10]} Re6 {[%emt 0:00:06]} 39. Qd4+ {[%emt 0:00:24]} Kf7 {[%emt 0:00:01]} 40. b5 {[%emt 0:00:14]} Nf5 {[%emt 0:01:13]} 41. Qd7+ {[%emt 0:00:09]} Kf6 {[%emt 0:00:02]} 42. h3 {[%emt 0:01:14]} Ng3+ {[%emt 0:00:35]} 43. Kg1 {[%emt 0:00:12]} Ne2+ {[%emt 0:01:07]} 44. Kf2 {[%emt 0:00:02]} Nf4 {[%emt 0:00:43]} 45. Qd4+ {[%emt 0:00:36]} Kf5 {[%emt 0:00:01]} 46. c6 {[%emt 0:00:33]} 1-0

[Event "48th Indian U15-ch Girls 2023"]
[Site "Jalgaon"]
[Date "2023.12.31"]
[Round "6.4"]
[White "Aamuktha Guntaka"]
[Black "Sherali Pattnaik"]
[Result "1-0"]
[ECO "C82"]
[WhiteElo "1532"]
[BlackElo "1575"]
[Annotator "NA COMBH"]
[PlyCount "151"]
[EventDate "2023.12.30"]
[EventType "swiss"]
[EventCountry "IND"]
[SourceTitle "playchess.com"]
[Source "ChessBase"]
[SourceQuality "1"]
[TimeControl "5400+30"]

1. e4 {[%emt 0:01:19]} e5 {[%emt 0:02:05]} 2. Nf3 {[%emt 0:00:17]} Nc6 {[%emt 0:00:04]} 3. Bb5 {[%emt 0:00:07]} a6 {[%emt 0:00:09]} 4. Ba4 {[%emt 0:00:07]} Nf6 {[%emt 0:00:03]} 5. O-O {[%emt 0:00:07]} Nxe4 {[%emt 0:00:03]} 6. d4 {[%emt 0:00:12]} b5 {[%emt 0:00:03]} 7. Bb3 {[%emt 0:00:04]} d5 {[%emt 0:00:03]} 8. dxe5 {[%emt 0:00:11]} Be6 {[%emt 0:00:03]} 9. c3 {[%emt 0:00:31]} Bc5 {[%emt 0:00:03]} 10. Nbd2 {[%emt 0:00:06]} O-O {[%emt 0:00:08]} 11. Bc2 {[%emt 0:00:17]} Nxf2 {[%emt 0:00:06]} 12. Rxf2 {[%emt 0:00:06]} f6 {[%emt 0:00:02]} 13. Nf1 {[%emt 0:00:14]} Bxf2+ {[%emt 0:00:04]} 14. Kxf2 {[%emt 0:00:06]} fxe5 {[%emt 0:00:01]} 15. Kg1 {[%emt 0:00:16]} h6 {[%emt 0:00:06]} 16. Be3 {[%emt 0:10:38]} Qd6 {[%emt 0:11:23]} 17. b4 {[%emt 0:13:17]} Rf7 {[%emt 0:11:10]} 18. a4 {[%emt 0:12:21]} Rd8 {[%emt 0:06:23]} 19. axb5 {[%emt 0:02:14]} axb5 {[%emt 0:00:01]} 20. Bc5 {[%emt 0:13:04]} Qd7 {[%emt 0:00:19]} 21. Qe1 {[%emt 0:02:49]} e4 {[%emt 0:08:50]} 22. N3d2 {[%emt 0:04:36]} Ne5 {[%emt 0:08:07]} 23. Rd1 {[%emt 0:12:16]} Bg4 {[%emt 0:06:08]} 24. Ra1 {[%emt 0:02:36]} Re8 {[%emt 0:03:37]} 25. Qe3 {[%emt 0:05:40]} Ng6 {[%emt 0:13:02]} 26. Ng3 {[%emt 0:02:14]} Qd8 {[%emt 0:03:53]} 27. h3 {[%emt 0:01:24]} Bd7 {[%emt 0:00:00]} 28. Ne2 {[%emt 0:01:26]} Nh4 {[%emt 0:08:44]} 29. Ng3 {[%emt 0:01:30]} Re5 {[%emt 0:03:18]} 30. Rf1 {[%emt 0:00:59]} Rxf1+ {[%emt 0:01:18]} 31. Ndxf1 {[%emt 0:00:25]} Rg5 {[%emt 0:01:18]} 32. Qf2 {[%emt 0:02:32]} Qc8 {[%emt 0:08:33]} 33. Kh2 {[%emt 0:02:21]} Qd8 {[%emt 0:01:17]} 34. Bd1 {[%emt 0:01:56]} Qf6 {[%emt 0:01:20]} 35. Bd4 {[%emt 0:00:48]} Qxf2 {[%emt 0:01:21]} 36. Bxf2 {[%emt 0:00:05]} Re5 {[%emt 0:00:01]} 37. Ne3 {[%emt 0:02:00]} Ng6 {[%emt 0:00:57]} 38. Ne2 {[%emt 0:00:49]} c6 {[%emt 0:00:12]} 39. Nd4 {[%emt 0:01:11]} Re8 {[%emt 0:00:14]} 40. Bh5 {[%emt 0:01:00]} Kh7 {[%emt 0:00:46]} 41. Nef5 {[%emt 0:01:49]} Rf8 {[%emt 0:01:02]} 42. Bxg6+ {[%emt 0:00:17]} Kxg6 {[%emt 0:00:01]} 43. g4 {[%emt 0:01:06]} Re8 {[%emt 0:02:51]} 44. Be3 {[%emt 0:00:56]} Kf6 {[%emt 0:01:07]} 45. Kg3 {[%emt 0:01:04]} Ra8 {[%emt 0:00:31]} 46. h4 {[%emt 0:02:31]} Ra3 {[%emt 0:00:40]} 47. Bd2 {[%emt 0:00:42]} Ra2 {[%emt 0:00:01]} 48. Be3 {[%emt 0:00:45]} Ra3 {[%emt 0:00:00]} 49. g5+ {[%emt 0:00:55]} hxg5 {[%emt 0:00:19]} 50. hxg5+ {[%emt 0:00:04]} Kg6 {[%emt 0:00:19]} 51. Nh4+ {[%emt 0:00:23]} Kf7 {[%emt 0:00:30]} 52. Ne2 {[%emt 0:00:31]} Ra2 {[%emt 0:00:21]} 53. Nf4 {[%emt 0:00:57]} Rc2 {[%emt 0:01:55]} 54. Bd4 {[%emt 0:00:32]} Rd2 {[%emt 0:00:20]} 55. Nhg2 {[%emt 0:00:42]} Bc8 {[%emt 0:01:44]} 56. Ne3 {[%emt 0:00:21]} Bd7 {[%emt 0:00:03]} 57. g6+ {[%emt 0:00:20]} Kf8 {[%emt 0:00:22]} 58. Nh5 {[%emt 0:00:39]} Kg8 {[%emt 0:00:19]} 59. Nf4 {[%emt 0:00:37]} Kf8 {[%emt 0:00:02]} 60. Nh5 {[%emt 0:00:33]} Kg8 {[%emt 0:00:01]} 61. Kf4 {[%emt 0:00:29]} Be8 {[%emt 0:01:31]} 62. Kg5 {[%emt 0:00:09]} Bd7 {[%emt 0:01:37]} 63. Bxg7 {[%emt 0:00:29]} Rh2 {[%emt 0:00:38]} 64. Be5 {[%emt 0:00:51]} Rxh5+ {[%emt 0:00:22]} 65. Kxh5 {[%emt 0:00:06]} Be8 {[%emt 0:00:00]} 66. Kh6 {[%emt 0:00:22]} Bd7 {[%emt 0:00:08]} 67. Bd4 {[%emt 0:00:27]} Bc8 {[%emt 0:00:12]} 68. Ng2 {[%emt 0:00:09]} Kf8 {[%emt 0:00:16]} 69. g7+ {[%emt 0:00:18]} Kg8 {[%emt 0:00:01]} 70. Nf4 {[%emt 0:00:24]} Bf5 {[%emt 0:00:31]} 71. Nh5 {[%emt 0:00:07]} Bh7 {[%emt 0:00:04]} 72. Nf6+ {[%emt 0:00:04]} Kf7 {[%emt 0:00:02]} 73. Kxh7 {[%emt 0:00:10]} e3 {[%emt 0:00:02]} 74. g8=Q+ {[%emt 0:00:10]} Ke7 {[%emt 0:00:00]} 75. Qe8+ {[%emt 0:00:28]} Kd6 {[%emt 0:00:03]} 76. Qe5# {[%emt 0:00:11]} 1-0

[Event "48th Indian U15-ch Girls 2023"]
[Site "Jalgaon"]
[Date "2023.12.31"]
[Round "6.5"]
[White "Anupam M Sreekumar"]
[Black "Asmita Avijit Ray"]
[Result "1-0"]
[ECO "B19"]
[WhiteElo "1642"]
[BlackElo "1470"]
[Annotator "NA COMBH"]
[PlyCount "139"]
[EventDate "2023.12.30"]
[EventType "swiss"]
[EventCountry "IND"]
[SourceTitle "playchess.com"]
[Source "ChessBase"]
[SourceQuality "1"]
[TimeControl "5400+30"]

1. e4 {[%emt 0:00:45]} c6 {[%emt 0:00:07]} 2. d4 {[%emt 0:00:22]} d5 {[%emt 0:00:07]} 3. Nc3 {[%emt 0:00:51]} dxe4 {[%emt 0:00:18]} 4. Nxe4 {[%emt 0:00:05]} Bf5 {[%emt 0:00:09]} 5. Ng3 {[%emt 0:00:30]} Bg6 {[%emt 0:00:08]} 6. h4 {[%emt 0:00:31]} h6 {[%emt 0:00:10]} 7. Nf3 {[%emt 0:00:33]} Nd7 {[%emt 0:00:09]} 8. Bd3 {[%emt 0:00:17]} Bxd3 {[%emt 0:00:09]} 9. Qxd3 {[%emt 0:00:09]} e6 {[%emt 0:00:05]} 10. Bd2 {[%emt 0:00:29]} Ngf6 {[%emt 0:00:11]} 11. O-O-O {[%emt 0:00:26]} Be7 {[%emt 0:00:08]} 12. Qe2 {[%emt 0:03:30]} c5 {[%emt 0:02:33]} 13. Rhe1 {[%emt 0:02:24]} O-O {[%emt 0:04:29]} 14. Nf5 {[%emt 0:02:18]} exf5 {[%emt 0:11:05]} 15. Qxe7 {[%emt 0:00:58]} Ne4 {[%emt 0:06:50]} 16. Qxd8 {[%emt 0:03:36]} Raxd8 {[%emt 0:04:38]} 17. Be3 {[%emt 0:01:01]} b6 {[%emt 0:17:51]} 18. Nd2 {[%emt 0:18:30]} cxd4 {[%emt 0:15:51]} 19. Bxd4 {[%emt 0:01:28]} Rfe8 {[%emt 0:02:31]} 20. Nxe4 {[%emt 0:19:26]} fxe4 {[%emt 0:00:31]} 21. g4 {[%emt 0:00:21]} f6 {[%emt 0:05:11]} 22. Re3 {[%emt 0:03:02]} Nb8 {[%emt 0:06:02]} 23. Rc3 {[%emt 0:05:29]} Kf7 {[%emt 0:02:59]} 24. Be3 {[%emt 0:09:00]} Rc8 {[%emt 0:05:25]} 25. Rxc8 {[%emt 0:01:47]} Rxc8 {[%emt 0:00:04]} 26. Bf4 {[%emt 0:02:35]} g5 {[%emt 0:07:09]} 27. hxg5 {[%emt 0:03:34]} hxg5 {[%emt 0:00:09]} 28. Bxb8 {[%emt 0:01:47]} Rxb8 {[%emt 0:00:04]} 29. Rd4 {[%emt 0:01:45]} Ke6 {[%emt 0:05:51]} 30. Rxe4+ {[%emt 0:00:33]} Kd6 {[%emt 0:00:31]} 31. Kd2 {[%emt 0:00:43]} Rf8 {[%emt 0:00:46]} 32. Rd4+ {[%emt 0:01:15]} Kc6 {[%emt 0:00:20]} 33. Ke3 {[%emt 0:01:29]} f5 {[%emt 0:00:45]} 34. gxf5 {[%emt 0:02:38]} Rxf5 {[%emt 0:00:08]} 35. f3 {[%emt 0:04:42]} a5 {[%emt 0:02:10]} 36. Rd8 {[%emt 0:00:52]} b5 {[%emt 0:01:25]} 37. Rc8+ {[%emt 0:01:12]} Kd6 {[%emt 0:00:26]} 38. a3 {[%emt 0:01:08]} Re5+ {[%emt 0:00:45]} 39. Kf2 {[%emt 0:00:26]} Kd7 {[%emt 0:00:46]} 40. Rc3 {[%emt 0:00:38]} Rf5 {[%emt 0:00:48]} 41. Kg3 {[%emt 0:00:35]} Ke6 {[%emt 0:00:21]} 42. Kg4 {[%emt 0:00:32]} Rd5 {[%emt 0:00:20]} 43. Rc6+ {[%emt 0:00:42]} Kf7 {[%emt 0:00:07]} 44. Ra6 {[%emt 0:00:59]} a4 {[%emt 0:00:44]} 45. Rc6 {[%emt 0:00:35]} Re5 {[%emt 0:00:32]} 46. f4 {[%emt 0:00:32]} gxf4 {[%emt 0:00:16]} 47. Kxf4 {[%emt 0:00:02]} Rh5 {[%emt 0:00:18]} 48. Ke4 {[%emt 0:00:10]} Ke7 {[%emt 0:00:17]} 49. Kd4 {[%emt 0:00:04]} Kd7 {[%emt 0:01:11]} 50. Rc5 {[%emt 0:00:08]} Rh2 {[%emt 0:00:58]} 51. Kc3 {[%emt 0:00:24]} Rh4 {[%emt 0:00:35]} 52. Rxb5 {[%emt 0:00:33]} Kc6 {[%emt 0:00:02]} 53. Rb8 {[%emt 0:01:16]} Kc5 {[%emt 0:00:34]} 54. Rc8+ {[%emt 0:01:31]} Kb5 {[%emt 0:00:09]} 55. Re8 {[%emt 0:01:33]} Rh3+ {[%emt 0:00:17]} 56. Kd4 {[%emt 0:00:03]} Rh2 {[%emt 0:00:19]} 57. Re5+ {[%emt 0:00:13]} Kb6 {[%emt 0:00:11]} 58. Kc3 {[%emt 0:00:24]} Rh3+ {[%emt 0:00:27]} 59. Kb4 {[%emt 0:00:36]} Rh4+ {[%emt 0:00:25]} 60. c4 {[%emt 0:00:22]} Rh2 {[%emt 0:00:20]} 61. Rb5+ {[%emt 0:00:03]} Ka6 {[%emt 0:00:17]} 62. Kxa4 {[%emt 0:00:05]} Ka7 {[%emt 0:00:14]} 63. b3 {[%emt 0:00:46]} Ra2 {[%emt 0:00:17]} 64. Kb4 {[%emt 0:00:07]} Ka8 {[%emt 0:00:08]} 65. Rh5 {[%emt 0:00:07]} Ra1 {[%emt 0:00:09]} 66. c5 {[%emt 0:00:39]} Rc1 {[%emt 0:00:12]} 67. Kb5 {[%emt 0:00:08]} Kb8 {[%emt 0:00:15]} 68. b4 {[%emt 0:00:06]} Rc3 {[%emt 0:00:12]} 69. Kb6 {[%emt 0:00:15]} Kc8 {[%emt 0:00:19]} 70. c6 {[%emt 0:00:04]} 1-0

[Event "48th Indian U15-ch Girls 2023"]
[Site "Jalgaon"]
[Date "2023.12.31"]
[Round "6.6"]
[White "Mrittika Mallick"]
[Black "Chaarvi Choudhury"]
[Result "1-0"]
[ECO "B40"]
[WhiteElo "1970"]
[BlackElo "1468"]
[Annotator "COMBH"]
[PlyCount "81"]
[EventDate "2023.12.30"]
[EventType "swiss"]
[EventCountry "IND"]
[SourceTitle "playchess.com"]
[Source "ChessBase"]
[SourceQuality "1"]
[TimeControl "5400+30"]

1. e4 {[%emt 0:00:02]} c5 {[%emt 0:00:05]} 2. Nf3 {[%emt 0:00:10]} e6 {[%emt 0:00:05]} 3. b3 {[%emt 0:01:05]} d5 {[%emt 0:00:01]} 4. exd5 {[%emt 0:01:12]} exd5 {[%emt 0:00:02]} 5. Bb5+ {[%emt 0:00:52]} Nc6 {[%emt 0:00:02]} 6. O-O {[%emt 0:01:01]} Be7 {[%emt 0:00:02]} 7. Re1 {[%emt 0:03:03]} Nf6 {[%emt 0:10:37]} 8. Qe2 {[%emt 0:02:03]} Bg4 {[%emt 0:12:10]} 9. Bxc6+ {[%emt 0:01:47]} bxc6 {[%emt 0:00:03]} 10. Ba3 {[%emt 0:03:15]} Ne4 {[%emt 0:22:03]} 11. d3 {[%emt 0:03:16]} Ng5 {[%emt 0:00:03]} 12. Qxe7+ {[%emt 0:00:43]} Qxe7 {[%emt 0:00:02]} 13. Rxe7+ {[%emt 0:00:01]} Kxe7 {[%emt 0:00:02]} 14. Nxg5 {[%emt 0:00:36]} Kf6 {[%emt 0:02:46]} 15. Nf3 {[%emt 0:00:24]} Bxf3 {[%emt 0:02:14]} 16. gxf3 {[%emt 0:00:02]} c4 {[%emt 0:03:21]} 17. bxc4 {[%emt 0:00:48]} dxc4 {[%emt 0:00:24]} 18. d4 {[%emt 0:00:40]} Rhd8 {[%emt 0:10:26]} 19. c3 {[%emt 0:03:44]} Re8 {[%emt 0:14:17]} 20. Kf1 {[%emt 0:01:28]} Ke6 {[%emt 0:00:30]} 21. Bc5 {[%emt 0:02:12]} Kd5 {[%emt 0:02:39]} 22. Na3 {[%emt 0:00:25]} f5 {[%emt 0:01:28]} 23. Nc2 {[%emt 0:00:13]} f4 {[%emt 0:06:35]} 24. Nb4+ {[%emt 0:00:07]} Ke6 {[%emt 0:00:04]} 25. Nxc6 {[%emt 0:00:22]} Rac8 {[%emt 0:04:55]} 26. Nxa7 {[%emt 0:03:12]} Rb8 {[%emt 0:02:06]} 27. Nc6 {[%emt 0:00:35]} Rb2 {[%emt 0:01:55]} 28. a4 {[%emt 0:00:46]} Rc2 {[%emt 0:01:24]} 29. Re1+ {[%emt 0:00:25]} Kf7 {[%emt 0:00:11]} 30. Rxe8 {[%emt 0:00:17]} Kxe8 {[%emt 0:00:02]} 31. Bb4 {[%emt 0:00:13]} Rc1+ {[%emt 0:01:01]} 32. Kg2 {[%emt 0:00:08]} Kd7 {[%emt 0:03:10]} 33. Ne5+ {[%emt 0:00:07]} Ke6 {[%emt 0:00:05]} 34. Nxc4 {[%emt 0:00:08]} Kd5 {[%emt 0:00:17]} 35. Nb6+ {[%emt 0:00:13]} Kc6 {[%emt 0:00:05]} 36. a5 {[%emt 0:00:11]} Rd1 {[%emt 0:00:36]} 37. d5+ {[%emt 0:00:15]} Kb5 {[%emt 0:00:24]} 38. d6 {[%emt 0:00:07]} g5 {[%emt 0:00:44]} 39. d7 {[%emt 0:00:10]} Kc6 {[%emt 0:00:36]} 40. Be7 {[%emt 0:00:16]} Kc7 {[%emt 0:00:48]} 41. d8=Q+ {[%emt 0:00:00]} 1-0